fUST/lending_fUST_20260515
["ID","MTS","AMOUNT","RATE_DAILY","PERIOD"]
[422274312,1778783442000,-500.0,0.00010399,2]
[422274308,1778783442000,-500.0,0.00010399,2]
[422274327,1778783442000,-460.28611774,0.00010747,2]
[422274329,1778783442000,-8263.88612473,0.000108,2]
[422274307,1778783442000,-351.74559572,0.00010399,2]
[422274328,1778783442000,-760.43216448,0.00010778,2]
[422274326,1778783442000,-5545.69122417,0.000107,2]
[422274330,1778783442000,-930.55374131,0.000108,2]
[422274321,1778783442000,-377.61063307,0.00010497,2]
[422274324,1778783442000,-220736.33791668,0.000106,2]
[422274323,1778783442000,-5545.69122417,0.000106,2]
[422274325,1778783442000,-868.32770776,0.00010678,2]
[422274320,1778783442000,-501401.67104328,0.000104,2]
[422274319,1778783442000,-43713.09193919,0.000104,2]
[422274317,1778783442000,-300.0,0.00010399,2]
[422274318,1778783442000,-5545.69122417,0.000104,2]
[422274311,1778783442000,-500.0,0.00010399,2]
[422274314,1778783442000,-500.0,0.00010399,2]
[422274309,1778783442000,-500.0,0.00010399,2]
[422274313,1778783442000,-500.0,0.00010399,2]
[422274322,1778783442000,-5545.69122417,0.000105,2]
[422274497,1778784638000,-300.0,8.538e-05,2]
[422274498,1778784638000,-300.0,8.538e-05,2]
[422274496,1778784638000,-300.0,8.538e-05,2]
[422274495,1778784638000,-300.0,8.538e-05,2]
[422274494,1778784638000,-300.0,8.538e-05,2]
[422274490,1778784638000,-1200.0,7.998e-05,2]
[422274491,1778784638000,-300.0,7.999e-05,2]
[422274488,1778784638000,-151.0,6.79e-05,2]
[422274493,1778784638000,-676.1200083,8.135e-05,2]
[422274492,1778784638000,-4832.8158622,8e-05,2]
[422274487,1778784638000,-321.43391444,6.617e-05,2]
[422274486,1778784638000,-5000.0,6.55e-05,2]
[422274485,1778784638000,-152.0,6.287e-05,7]
[422274499,1778784638000,-300.0,8.538e-05,2]
[422274489,1778784638000,-503.15775211,7.976e-05,2]
[422274500,1778784638000,-300.0,8.538e-05,2]
[422274505,1778784638000,-300.0,8.538e-05,2]
[422274501,1778784638000,-300.0,8.538e-05,2]
[422274502,1778784638000,-300.0,8.538e-05,2]
[422274516,1778784638000,-5000.0,9.526e-05,2]
[422274518,1778784638000,-647.0,9.647e-05,2]
[422274514,1778784638000,-5000.0,9.526e-05,2]
[422274515,1778784638000,-5000.0,9.526e-05,2]
[422274512,1778784638000,-10000.0,9.123e-05,2]
[422274510,1778784638000,-1151.0,8.798e-05,2]
[422274513,1778784638000,-5000.0,9.526e-05,2]
[422274517,1778784638000,-1412.0,9.647e-05,2]
[422274509,1778784638000,-379.29201904,8.617e-05,2]
[422274508,1778784638000,-300.0,8.538e-05,2]
[422274507,1778784638000,-300.0,8.538e-05,2]
[422274504,1778784638000,-300.0,8.538e-05,2]
[422274503,1778784638000,-300.0,8.538e-05,2]
[422274506,1778784638000,-300.0,8.538e-05,2]
[422274511,1778784638000,-420.0,8.799e-05,2]
[422274561,1778784639000,-151.0,0.00010315,2]
[422274560,1778784639000,-1016.0828707,0.000103,2]
[422274559,1778784639000,-172.17522243,0.000103,2]
[422274558,1778784639000,-151.0,0.000103,2]
[422274557,1778784639000,-151.0,0.000103,2]
[422274550,1778784639000,-151.0,0.000103,2]
[422274556,1778784639000,-151.0,0.000103,2]
[422274554,1778784639000,-151.0,0.000103,2]
[422274553,1778784639000,-151.0,0.000103,2]
[422274552,1778784639000,-151.0,0.000103,2]
[422274555,1778784639000,-151.0,0.000103,2]
[422274562,1778784639000,-151.0,0.00010315,2]
[422274569,1778784639000,-1016.0828707,0.000104,2]
[422274563,1778784639000,-557.5788265,0.00010355,2]
[422274566,1778784639000,-1506.52112738,0.00010395,2]
[422274565,1778784639000,-377.00728913,0.00010395,2]
[422274568,1778784639000,-1482.5186266,0.00010395,2]
[422274567,1778784639000,-371.00065731,0.00010395,2]
[422274551,1778784639000,-151.0,0.000103,2]
[422274571,1778784639000,-153.0284853,0.00010403,2]
[422274573,1778784639000,-500.0,0.00010426,2]
[422274570,1778784639000,-979.5540762,0.00010401,2]
[422274572,1778784639000,-578.20924308,0.0001041,2]
[422274575,1778784639000,-500.0,0.00010426,2]
[422274576,1778784639000,-151.5,0.00010426,2]
[422274574,1778784639000,-151.5,0.00010426,2]
[422274564,1778784639000,-758.39844269,0.00010395,2]
[422274545,1778784639000,-151.0,0.000103,2]
[422274542,1778784639000,-538.61800718,0.000103,2]
[422274546,1778784639000,-151.0,0.000103,2]
[422274579,1778784639000,-500.0,0.00010426,2]
[422274519,1778784639000,-2202.0,9.647e-05,2]
[422274521,1778784639000,-2701.77555315,9.687e-05,2]
[422274525,1778784639000,-296.562,9.8e-05,2]
[422274524,1778784639000,-151.0,9.745e-05,2]
[422274520,1778784639000,-587.0,9.679e-05,2]
[422274526,1778784639000,-160.0,9.828e-05,2]
[422274523,1778784639000,-151.0,9.745e-05,2]
[422274522,1778784639000,-600.0,9.715e-05,2]
[422274528,1778784639000,-653.77255591,9.875e-05,2]
[422274527,1778784639000,-160.0,9.828e-05,2]
[422274529,1778784639000,-2615.09022364,9.875e-05,2]
[422274531,1778784639000,-1016.0828707,0.0001,2]
[422274548,1778784639000,-151.0,0.000103,2]
[422274530,1778784639000,-5878.06905019,9.875e-05,2]
[422274533,1778784639000,-151.5,0.00010018,2]
[422274532,1778784639000,-209.62098797,0.00010018,2]
[422274537,1778784639000,-500.0,0.00010129,2]
[422274536,1778784639000,-500.0,0.00010109,2]
[422274535,1778784639000,-1016.0828707,0.000101,2]
[422274539,1778784639000,-161.64793294,0.00010281,2]
[422274538,1778784639000,-1016.0828707,0.000102,2]
[422274540,1778784639000,-163.09729822,0.000103,2]
[422274541,1778784639000,-537.6845,0.000103,2]
[422274543,1778784639000,-151.0,0.000103,2]
[422274544,1778784639000,-151.0,0.000103,2]
[422274547,1778784639000,-151.0,0.000103,2]
[422274549,1778784639000,-151.0,0.000103,2]
[422274534,1778784639000,-160.0,0.00010018,2]
[422274578,1778784639000,-153.28910047,0.00010426,2]
[422274597,1778784639000,-460449.28997613,0.00010699,2]
[422274580,1778784639000,-500.0,0.00010426,2]
[422274616,1778784639000,-151.0,0.00010858,2]
[422274615,1778784639000,-151.0,0.00010858,2]
[422274614,1778784639000,-289.146208,0.00010854,2]
[422274612,1778784639000,-151.0,0.00010854,2]
[422274618,1778784639000,-151.0,0.00010858,2]
[422274620,1778784639000,-400.0,0.000109,3]
[422274621,1778784639000,-400.0,0.000109,4]
[422274619,1778784639000,-10219.83926375,0.00010858,2]
[422274617,1778784639000,-151.0,0.00010858,2]
[422274623,1778784639000,-1016.0828707,0.000109,2]
[422274622,1778784639000,-2320.716009,0.000109,2]
[422274628,1778784639000,-167.197632,0.00010958,2]
[422274625,1778784639000,-1000.0,0.00010957,2]
[422274626,1778784639000,-549.2804,0.00010958,2]
[422274627,1778784639000,-560.2542,0.00010958,2]
[422274629,1778784639000,-178.61595,0.00010958,2]
[422274631,1778784639000,-500.0,0.00010958,2]
[422274632,1778784639000,-500.0,0.00010958,2]
[422274634,1778784639000,-500.0,0.00010958,2]
[422274636,1778784639000,-500.0,0.00010958,2]
[422274633,1778784639000,-2412.6948,0.00010958,2]
[422274635,1778784639000,-500.0,0.00010958,2]
[422274630,1778784639000,-504.01622712,0.00010958,2]
[422274639,1778784639000,-500.0,0.00010958,2]
[422274638,1778784639000,-500.0,0.00010958,2]
[422274637,1778784639000,-500.0,0.00010958,2]
[422274577,1778784639000,-299.33000414,0.00010426,2]
[422274613,1778784639000,-151.0,0.00010854,2]
[422274611,1778784639000,-151.0,0.00010854,2]
[422274624,1778784639000,-447.14637119,0.00010911,21]
[422274609,1778784639000,-1272.0,0.00010817,6]
[422274583,1778784639000,-500.0,0.00010426,2]
[422274610,1778784639000,-151.0,0.00010854,2]
[422274581,1778784639000,-500.0,0.00010426,2]
[422274586,1778784639000,-500.0,0.00010426,2]
[422274584,1778784639000,-500.0,0.00010426,2]
[422274582,1778784639000,-500.0,0.00010426,2]
[422274585,1778784639000,-500.0,0.00010426,2]
[422274587,1778784639000,-188.71178145,0.00010426,2]
[422274590,1778784639000,-1016.0828707,0.000105,2]
[422274589,1778784639000,-599.60298507,0.00010465,2]
[422274591,1778784639000,-621.78829552,0.0001052,2]
[422274592,1778784639000,-1016.0828707,0.000106,2]
[422274593,1778784639000,-437.15012364,0.00010617,2]
[422274594,1778784639000,-578.88513851,0.00010678,2]
[422274588,1778784639000,-3030.56017701,0.00010441,2]
[422274606,1778784639000,-151.0,0.000108,2]
[422274608,1778784639000,-294.56300841,0.000108,2]
[422274595,1778784639000,-720.0,0.00010687,2]
[422274605,1778784639000,-151.0,0.000108,2]
[422274604,1778784639000,-151.0,0.000108,2]
[422274603,1778784639000,-151.0,0.000108,2]
[422274602,1778784639000,-1012.82623545,0.000108,2]
[422274607,1778784639000,-151.0,0.000108,2]
[422274599,1778784639000,-1016.0828707,0.000108,2]
[422274600,1778784639000,-1000000.0,0.000108,2]
[422274598,1778784639000,-1016.0828707,0.000107,2]
[422274596,1778784639000,-79782.0,0.00010693,2]
[422274601,1778784639000,-203.391,0.000108,2]
[422274685,1778784640000,-500.0,0.00010958,2]
[422274680,1778784640000,-689.0,0.00010958,2]
[422274683,1778784640000,-500.0,0.00010958,2]
[422274681,1778784640000,-500.0,0.00010958,2]
[422274682,1778784640000,-500.0,0.00010958,2]
[422274679,1778784640000,-500.0,0.00010958,2]
[422274671,1778784640000,-500.0,0.00010958,2]
[422274675,1778784640000,-500.0,0.00010958,2]
[422274677,1778784640000,-500.0,0.00010958,2]
[422274676,1778784640000,-500.14361197,0.00010958,2]
[422274674,1778784640000,-500.0,0.00010958,2]
[422274684,1778784640000,-500.0,0.00010958,2]
[422274678,1778784640000,-500.0,0.00010958,2]
[422274686,1778784640000,-444.60106968,0.00010958,2]
[422274700,1778784640000,-340.95540975,0.00010958,2]
[422274688,1778784640000,-500.0,0.00010958,2]
[422274690,1778784640000,-500.0,0.00010958,2]
[422274689,1778784640000,-500.0,0.00010958,2]
[422274692,1778784640000,-699.41,0.00010958,2]
[422274693,1778784640000,-500.0,0.00010958,2]
[422274691,1778784640000,-500.0,0.00010958,2]
[422274694,1778784640000,-621.44028599,0.00010958,2]
[422274698,1778784640000,-500.0,0.00010958,2]
[422274696,1778784640000,-500.0,0.00010958,2]
[422274697,1778784640000,-500.0,0.00010958,2]
[422274699,1778784640000,-500.0,0.00010958,2]
[422274701,1778784640000,-500.0,0.00010958,2]
[422274673,1778784640000,-306.19843025,0.00010958,2]
[422274687,1778784640000,-500.0,0.00010958,2]
[422274672,1778784640000,-500.0,0.00010958,2]
[422274642,1778784640000,-875.57,0.00010958,2]
[422274669,1778784640000,-500.0,0.00010958,2]
[422274702,1778784640000,-1022.0,0.00010958,2]
[422274640,1778784640000,-500.0,0.00010958,2]
[422274645,1778784640000,-500.0,0.00010958,2]
[422274643,1778784640000,-500.0,0.00010958,2]
[422274641,1778784640000,-500.0,0.00010958,2]
[422274646,1778784640000,-500.0,0.00010958,2]
[422274648,1778784640000,-500.0,0.00010958,2]
[422274644,1778784640000,-1030.24,0.00010958,2]
[422274647,1778784640000,-500.0,0.00010958,2]
[422274649,1778784640000,-500.0,0.00010958,2]
[422274650,1778784640000,-500.0,0.00010958,2]
[422274653,1778784640000,-500.0,0.00010958,2]
[422274652,1778784640000,-500.0,0.00010958,2]
[422274651,1778784640000,-500.0,0.00010958,2]
[422274654,1778784640000,-500.0,0.00010958,2]
[422274656,1778784640000,-500.0,0.00010958,2]
[422274655,1778784640000,-500.0,0.00010958,2]
[422274658,1778784640000,-1119.09,0.00010958,2]
[422274657,1778784640000,-500.0,0.00010958,2]
[422274659,1778784640000,-500.0,0.00010958,2]
[422274661,1778784640000,-500.0,0.00010958,2]
[422274660,1778784640000,-500.0,0.00010958,2]
[422274663,1778784640000,-500.0,0.00010958,2]
[422274662,1778784640000,-689.26,0.00010958,2]
[422274664,1778784640000,-500.0,0.00010958,2]
[422274665,1778784640000,-506.23627819,0.00010958,2]
[422274666,1778784640000,-500.0,0.00010958,2]
[422274667,1778784640000,-627.78215693,0.00010958,2]
[422274668,1778784640000,-1585.17,0.00010958,2]
[422274670,1778784640000,-1000.0,0.00010958,2]
[422274704,1778784640000,-500.0,0.00010958,2]
[422274728,1778784640000,-500.0,0.00010958,2]
[422274705,1778784640000,-500.0,0.00010958,2]
[422274740,1778784640000,-500.0,0.00010958,2]
[422274738,1778784640000,-500.0,0.00010958,2]
[422274741,1778784640000,-500.3001028,0.00010958,2]
[422274742,1778784640000,-500.0,0.00010958,2]
[422274744,1778784640000,-151.0,0.00010958,2]
[422274746,1778784640000,-151.0,0.00010958,2]
[422274743,1778784640000,-151.0,0.00010958,2]
[422274745,1778784640000,-151.0,0.00010958,2]
[422274748,1778784640000,-500.0,0.00010958,2]
[422274747,1778784640000,-151.0,0.00010958,2]
[422274750,1778784640000,-151.0,0.00010958,2]
[422274752,1778784640000,-151.0,0.00010958,2]
[422274749,1778784640000,-151.0,0.00010958,2]
[422274751,1778784640000,-500.0,0.00010958,2]
[422274753,1778784640000,-1126.94,0.00010958,2]
[422274754,1778784640000,-151.0,0.00010958,2]
[422274756,1778784640000,-151.0,0.00010958,2]
[422274757,1778784640000,-207.220905,0.00010958,2]
[422274759,1778784640000,-500.0,0.00010958,2]
[422274755,1778784640000,-151.0,0.00010958,2]
[422274758,1778784640000,-555.62,0.00010958,2]
[422274765,1778784640000,-501.3574477,0.00010958,2]
[422274760,1778784640000,-500.0,0.00010958,2]
[422274762,1778784640000,-500.0,0.00010958,2]
[422274763,1778784640000,-500.0,0.00010958,2]
[422274764,1778784640000,-500.0,0.00010958,2]
[422274761,1778784640000,-500.29004569,0.00010958,2]
[422274766,1778784640000,-500.0,0.00010958,2]
[422274768,1778784640000,-500.41053118,0.00010958,2]
[422274739,1778784640000,-500.0,0.00010958,2]
[422274736,1778784640000,-500.0,0.00010958,2]
[422274707,1778784640000,-500.0,0.00010958,2]
[422274734,1778784640000,-500.0,0.00010958,2]
[422274735,1778784640000,-500.41718745,0.00010958,2]
[422274703,1778784640000,-500.27399387,0.00010958,2]
[422274706,1778784640000,-500.0,0.00010958,2]
[422274708,1778784640000,-500.0,0.00010958,2]
[422274714,1778784640000,-500.0,0.00010958,2]
[422274709,1778784640000,-632.29353232,0.00010958,2]
[422274711,1778784640000,-500.0,0.00010958,2]
[422274712,1778784640000,-500.0,0.00010958,2]
[422274713,1778784640000,-500.14850335,0.00010958,2]
[422274715,1778784640000,-546.20740258,0.00010958,2]
[422274716,1778784640000,-500.33719706,0.00010958,2]
[422274718,1778784640000,-500.16240419,0.00010958,2]
[422274719,1778784640000,-500.0,0.00010958,2]
[422274717,1778784640000,-500.0,0.00010958,2]
[422274710,1778784640000,-500.0,0.00010958,2]
[422274721,1778784640000,-500.33951728,0.00010958,2]
[422274720,1778784640000,-500.0,0.00010958,2]
[422274737,1778784640000,-964.35,0.00010958,2]
[422274733,1778784640000,-500.39543274,0.00010958,2]
[422274732,1778784640000,-500.17882185,0.00010958,2]
[422274730,1778784640000,-500.0,0.00010958,2]
[422274731,1778784640000,-309.62743772,0.00010958,2]
[422274729,1778784640000,-500.0,0.00010958,2]
[422274724,1778784640000,-500.0,0.00010958,2]
[422274723,1778784640000,-162.22657825,0.00010958,2]
[422274727,1778784640000,-500.0,0.00010958,2]
[422274726,1778784640000,-500.0,0.00010958,2]
[422274725,1778784640000,-500.0,0.00010958,2]
[422274767,1778784640000,-500.0,0.00010958,2]
[422274722,1778784640000,-500.0,0.00010958,2]
[422274799,1778784641000,-500.0,0.00010958,2]
[422274800,1778784641000,-500.98531637,0.00010958,2]
[422274798,1778784641000,-500.0,0.00010958,2]
[422274797,1778784641000,-501.12419916,0.00010958,2]
[422274793,1778784641000,-500.0,0.00010958,2]
[422274795,1778784641000,-500.11831847,0.00010958,2]
[422274801,1778784641000,-418.45844958,0.00010958,2]
[422274794,1778784641000,-500.22478213,0.00010958,2]
[422274796,1778784641000,-500.0,0.00010958,2]
[422274802,1778784641000,-500.0,0.00010958,2]
[422274809,1778784641000,-410.08298639,0.00010958,2]
[422274803,1778784641000,-500.0,0.00010958,2]
[422274807,1778784641000,-500.0,0.00010958,2]
[422274806,1778784641000,-500.3806457,0.00010958,2]
[422274810,1778784641000,-500.70161887,0.00010958,2]
[422274808,1778784641000,-500.0,0.00010958,2]
[422274811,1778784641000,-500.0,0.00010958,2]
[422274813,1778784641000,-981.39,0.00010958,2]
[422274814,1778784641000,-500.0,0.00010958,2]
[422274792,1778784641000,-500.0,0.00010958,2]
[422274804,1778784641000,-500.0,0.00010958,2]
[422274791,1778784641000,-500.0,0.00010958,2]
[422274778,1778784641000,-299.96891988,0.00010958,2]
[422274788,1778784641000,-151.0,0.00010958,2]
[422274772,1778784641000,-500.0,0.00010958,2]
[422274771,1778784641000,-500.0,0.00010958,2]
[422274769,1778784641000,-500.0,0.00010958,2]
[422274770,1778784641000,-500.0,0.00010958,2]
[422274773,1778784641000,-399.74608049,0.00010958,2]
[422274775,1778784641000,-500.0,0.00010958,2]
[422274774,1778784641000,-500.0,0.00010958,2]
[422274812,1778784641000,-500.0,0.00010958,2]
[422274779,1778784641000,-500.0,0.00010958,2]
[422274789,1778784641000,-151.0,0.00010958,2]
[422274776,1778784641000,-500.0,0.00010958,2]
[422274780,1778784641000,-1565.63,0.00010958,2]
[422274781,1778784641000,-500.0,0.00010958,2]
[422274784,1778784641000,-500.0,0.00010958,2]
[422274783,1778784641000,-500.27739334,0.00010958,2]
[422274782,1778784641000,-500.0,0.00010958,2]
[422274785,1778784641000,-500.50578301,0.00010958,2]
[422274790,1778784641000,-151.0,0.00010958,2]
[422274786,1778784641000,-500.0,0.00010958,2]
[422274787,1778784641000,-500.0,0.00010958,2]
[422274777,1778784641000,-500.0,0.00010958,2]
[422274816,1778784641000,-500.22198522,0.00010958,2]
[422274805,1778784641000,-500.0,0.00010958,2]
[422274817,1778784641000,-500.0,0.00010958,2]
[422274841,1778784641000,-500.0,0.00010958,2]
[422274844,1778784641000,-565.79,0.00010958,2]
[422274843,1778784641000,-555.45219862,0.00010958,2]
[422274845,1778784641000,-500.0,0.00010958,2]
[422274846,1778784641000,-500.0,0.00010958,2]
[422274847,1778784641000,-598.79,0.00010958,2]
[422274848,1778784641000,-500.0,0.00010958,2]
[422274849,1778784641000,-500.0,0.00010958,2]
[422274850,1778784641000,-500.0,0.00010958,2]
[422274852,1778784641000,-500.23489871,0.00010958,2]
[422274855,1778784641000,-500.54,0.00010958,2]
[422274856,1778784641000,-500.0,0.00010958,2]
[422274853,1778784641000,-500.0,0.00010958,2]
[422274854,1778784641000,-549.04,0.00010958,2]
[422274857,1778784641000,-500.0,0.00010958,2]
[422274863,1778784641000,-500.0,0.00010958,2]
[422274861,1778784641000,-984.94,0.00010958,2]
[422274862,1778784641000,-500.0,0.00010958,2]
[422274859,1778784641000,-500.61720503,0.00010958,2]
[422274864,1778784641000,-500.31761429,0.00010958,2]
[422274815,1778784641000,-500.53100016,0.00010958,2]
[422274842,1778784641000,-500.0,0.00010958,2]
[422274840,1778784641000,-500.0,0.00010958,2]
[422274851,1778784641000,-537.14,0.00010958,2]
[422274838,1778784641000,-500.0,0.00010958,2]
[422274818,1778784641000,-500.32999679,0.00010958,2]
[422274839,1778784641000,-500.0,0.00010958,2]
[422274820,1778784641000,-208.87300773,0.00010958,2]
[422274819,1778784641000,-500.1839509,0.00010958,2]
[422274822,1778784641000,-500.47599875,0.00010958,2]
[422274823,1778784641000,-500.0,0.00010958,2]
[422274821,1778784641000,-500.0,0.00010958,2]
[422274824,1778784641000,-568.28,0.00010958,2]
[422274826,1778784641000,-2708.23,0.00010958,2]
[422274827,1778784641000,-500.0,0.00010958,2]
[422274825,1778784641000,-500.0,0.00010958,2]
[422274836,1778784641000,-500.0,0.00010958,2]
[422274829,1778784641000,-503.98,0.00010958,2]
[422274831,1778784641000,-500.31097187,0.00010958,2]
[422274830,1778784641000,-500.17386366,0.00010958,2]
[422274832,1778784641000,-500.0,0.00010958,2]
[422274834,1778784641000,-500.0,0.00010958,2]
[422274835,1778784641000,-500.0,0.00010958,2]
[422274833,1778784641000,-500.19699898,0.00010958,2]
[422274828,1778784641000,-500.0,0.00010958,2]
[422274837,1778784641000,-500.0,0.00010958,2]
[422274906,1778784642000,-500.0,0.00010958,2]
[422274905,1778784642000,-500.0,0.00010958,2]
[422274901,1778784642000,-500.5286872,0.00010958,2]
[422274903,1778784642000,-500.0,0.00010958,2]
[422274897,1778784642000,-500.0,0.00010958,2]
[422274900,1778784642000,-500.38344075,0.00010958,2]
[422274898,1778784642000,-500.0,0.00010958,2]
[422274907,1778784642000,-500.98605638,0.00010958,2]
[422274896,1778784642000,-500.27069722,0.00010958,2]
[422274899,1778784642000,-500.25185894,0.00010958,2]
[422274908,1778784642000,-500.0,0.00010958,2]
[422274918,1778784642000,-500.0,0.00010958,2]
[422274910,1778784642000,-724.85,0.00010958,2]
[422274915,1778784642000,-500.0,0.00010958,2]
[422274912,1778784642000,-500.0,0.00010958,2]
[422274913,1778784642000,-2378.9,0.00010958,2]
[422274911,1778784642000,-500.0,0.00010958,2]
[422274914,1778784642000,-1151.86,0.00010958,2]
[422274917,1778784642000,-500.0,0.00010958,2]
[422274916,1778784642000,-500.3883706,0.00010958,2]
[422274919,1778784642000,-500.0,0.00010958,2]
[422274895,1778784642000,-500.0,0.00010958,2]
[422274909,1778784642000,-500.0,0.00010958,2]
[422274894,1778784642000,-1390.04,0.00010958,2]
[422274867,1778784642000,-500.0,0.00010958,2]
[422274893,1778784642000,-500.14070235,0.00010958,2]
[422274920,1778784642000,-885.91,0.00010958,2]
[422274865,1778784642000,-500.0,0.00010958,2]
[422274869,1778784642000,-500.0,0.00010958,2]
[422274872,1778784642000,-500.0,0.00010958,2]
[422274874,1778784642000,-500.0,0.00010958,2]
[422274875,1778784642000,-500.0,0.00010958,2]
[422274876,1778784642000,-500.0,0.00010958,2]
[422274878,1778784642000,-1311.53,0.00010958,2]
[422274877,1778784642000,-500.31019904,0.00010958,2]
[422274880,1778784642000,-500.0,0.00010958,2]
[422274892,1778784642000,-675.23,0.00010958,2]
[422274879,1778784642000,-167.043972,0.00010958,2]
[422274883,1778784642000,-500.0,0.00010958,2]
[422274882,1778784642000,-500.0,0.00010958,2]
[422274885,1778784642000,-178.431875,0.00010958,2]
[422274887,1778784642000,-502.9846105,0.00010958,2]
[422274884,1778784642000,-475.21585769,0.00010958,2]
[422274886,1778784642000,-500.0,0.00010958,2]
[422274888,1778784642000,-500.0,0.00010958,2]
[422274889,1778784642000,-500.27447166,0.00010958,2]
[422274890,1778784642000,-500.0,0.00010958,2]
[422274891,1778784642000,-500.0,0.00010958,2]
[422274881,1778784642000,-500.0,0.00010958,2]
[422274922,1778784642000,-153.93448702,0.00010958,2]
[422274955,1778784642000,-500.0,0.00010958,2]
[422274923,1778784642000,-500.67439134,0.00010958,2]
[422274952,1778784642000,-500.30799801,0.00010958,2]
[422274954,1778784642000,-500.0,0.00010958,2]
[422274956,1778784642000,-500.0,0.00010958,2]
[422274957,1778784642000,-1387.74,0.00010958,2]
[422274959,1778784642000,-500.28894781,0.00010958,2]
[422274961,1778784642000,-500.0,0.00010958,2]
[422274962,1778784642000,-500.0,0.00010958,2]
[422274958,1778784642000,-500.14350793,0.00010958,2]
[422274960,1778784642000,-500.0,0.00010958,2]
[422274963,1778784642000,-500.0,0.00010958,2]
[422274950,1778784642000,-500.0,0.00010958,2]
[422274964,1778784642000,-500.23472148,0.00010958,2]
[422274967,1778784642000,-500.0,0.00010958,2]
[422274969,1778784642000,-500.0,0.00010958,2]
[422274968,1778784642000,-500.0,0.00010958,2]
[422274971,1778784642000,-500.0,0.00010958,2]
[422274970,1778784642000,-500.0,0.00010958,2]
[422274974,1778784642000,-994.07,0.00010958,2]
[422274972,1778784642000,-500.0,0.00010958,2]
[422274973,1778784642000,-540.60676034,0.00010958,2]
[422274921,1778784642000,-500.58908079,0.00010958,2]
[422274975,1778784642000,-500.0,0.00010958,2]
[422274966,1778784642000,-500.52699407,0.00010958,2]
[422274948,1778784642000,-500.0,0.00010958,2]
[422274965,1778784642000,-500.13265659,0.00010958,2]
[422274946,1778784642000,-500.0,0.00010958,2]
[422274924,1778784642000,-168.235128,0.00010958,2]
[422274925,1778784642000,-500.0,0.00010958,2]
[422274949,1778784642000,-500.0,0.00010958,2]
[422274927,1778784642000,-500.0,0.00010958,2]
[422274926,1778784642000,-500.0,0.00010958,2]
[422274929,1778784642000,-500.29894321,0.00010958,2]
[422274928,1778784642000,-368.64943932,0.00010958,2]
[422274930,1778784642000,-500.65216021,0.00010958,2]
[422274933,1778784642000,-757.914046,0.00010958,2]
[422274932,1778784642000,-500.15517651,0.00010958,2]
[422274934,1778784642000,-500.0,0.00010958,2]
[422274935,1778784642000,-500.0,0.00010958,2]
[422274931,1778784642000,-1265.362115,0.00010958,2]
[422274937,1778784642000,-3206.95,0.00010958,2]
[422274939,1778784642000,-500.0,0.00010958,2]
[422274938,1778784642000,-500.0,0.00010958,2]
[422274941,1778784642000,-500.32108191,0.00010958,2]
[422274940,1778784642000,-500.0,0.00010958,2]
[422274943,1778784642000,-500.0,0.00010958,2]
[422274942,1778784642000,-500.1069288,0.00010958,2]
[422274944,1778784642000,-500.0,0.00010958,2]
[422274936,1778784642000,-500.0,0.00010958,2]
[422274947,1778784642000,-500.34117169,0.00010958,2]
[422274945,1778784642000,-500.0,0.00010958,2]